fUST/lending_fUST_20241227
["ID","MTS","AMOUNT","RATE_DAILY","PERIOD"]
[346723651,1735245047239,-500.0,0.0001723,2]
[346723652,1735245047248,-500.0,0.0001723,2]
[346723653,1735245047258,-500.0,0.0001723,2]
[346723654,1735245047267,-578.44,0.0001723,2]
[346723655,1735245047276,-500.0,0.0001723,2]
[346723656,1735245047285,-500.0,0.0001723,2]
[346723657,1735245047294,-500.0,0.0001723,2]
[346723658,1735245047303,-548.42,0.0001723,2]
[346723659,1735245047313,-500.0,0.0001723,2]
[346723660,1735245047322,-500.0,0.0001723,2]
[346723661,1735245047332,-500.0,0.0001723,2]
[346723662,1735245047341,-500.0,0.0001723,2]
[346723663,1735245047351,-500.0,0.0001723,2]
[346723664,1735245047360,-500.0,0.0001723,2]
[346723665,1735245047368,-500.0,0.0001723,2]
[346723666,1735245047378,-500.0,0.0001723,2]
[346723667,1735245047388,-701.98,0.0001723,2]
[346723668,1735245047397,-500.0,0.0001723,2]
[346723669,1735245047407,-403.03,0.0001723,2]
[346723670,1735245047416,-500.0,0.0001723,2]
[346723671,1735245047425,-500.0,0.0001723,2]
[346723672,1735245047434,-500.0,0.0001723,2]
[346723673,1735245047444,-500.0,0.0001723,2]
[346723674,1735245047453,-500.0,0.0001723,2]
[346723675,1735245047462,-500.0,0.0001723,2]
[346723676,1735245047471,-500.0,0.0001723,2]
[346723677,1735245047481,-500.0,0.0001723,2]
[346723678,1735245047489,-500.0,0.0001723,2]
[346723679,1735245047498,-500.0,0.0001723,2]
[346723680,1735245047508,-500.0,0.0001723,2]
[346723681,1735245047518,-500.0,0.0001723,2]
[346723682,1735245047527,-500.0,0.0001723,2]
[346723683,1735245047536,-500.0,0.0001723,2]
[346723684,1735245047545,-18432.96,0.0001723,2]
[346723685,1735245047647,-500.0,0.0001723,2]
[346723686,1735245047657,-580.51,0.0001723,2]
[346723687,1735245047667,-500.0,0.0001723,2]
[346723688,1735245047676,-500.0,0.0001723,2]
[346723689,1735245047685,-500.0,0.0001723,2]
[346723690,1735245047694,-500.0,0.0001723,2]
[346723691,1735245047703,-500.0,0.0001723,2]
[346723692,1735245047713,-500.0,0.0001723,2]
[346723693,1735245047722,-500.0,0.0001723,2]
[346723694,1735245047732,-500.0,0.0001723,2]
[346723695,1735245047741,-500.0,0.0001723,2]
[346723696,1735245047750,-500.0,0.0001723,2]
[346723697,1735245047759,-500.0,0.0001723,2]
[346723698,1735245047768,-500.0,0.0001723,2]
[346723699,1735245047777,-500.0,0.0001723,2]
[346723700,1735245047787,-500.0,0.00017231,2]
[346723701,1735245047796,-509.26,0.00017231,2]
[346723702,1735245047805,-500.0,0.00017231,2]
[346723703,1735245047815,-500.0,0.00017231,2]
[346723704,1735245047824,-500.0,0.00017231,2]
[346723705,1735245047833,-500.0,0.00017231,2]
[346723706,1735245047842,-500.0,0.00017231,2]
[346723707,1735245047851,-500.0,0.00017231,2]
[346723708,1735245047861,-500.0,0.00017231,2]
[346723709,1735245047870,-575.24,0.00017231,2]
[346723710,1735245047879,-500.0,0.00017231,2]
[346723711,1735245047889,-340.27349244,0.00017231,2]
[346723712,1735245047898,-576.70977446,0.00017231,2]
[346723713,1735245047907,-500.0,0.00017231,2]
[346723714,1735245047916,-500.0,0.00017231,2]
[346723715,1735245047925,-500.0,0.00017231,2]
[346723716,1735245047934,-798.14,0.00017231,2]
[346723717,1735245047944,-500.0,0.00017231,2]
[346723718,1735245047953,-500.0,0.00017231,2]
[346723719,1735245047962,-500.0,0.00017231,2]
[346723720,1735245047973,-500.0,0.00017231,2]
[346723721,1735245047982,-1614.47,0.00017231,2]
[346723722,1735245047991,-500.0,0.00017231,2]
[346723723,1735245048001,-500.0,0.00017231,2]
[346723724,1735245048010,-795.99,0.00017231,2]
[346723725,1735245048020,-500.0,0.00017231,2]
[346723726,1735245048029,-500.0,0.00017231,2]
[346723727,1735245048039,-500.0,0.00017231,2]
[346723728,1735245048048,-500.0,0.00017231,2]
[346723729,1735245048065,-500.0,0.00017231,2]
[346723730,1735245048076,-1037.5,0.00017231,2]
[346723731,1735245048086,-500.0,0.00017231,2]
[346723732,1735245048095,-500.0,0.00017231,2]
[346723733,1735245048106,-1026.12,0.00017231,2]
[346723734,1735245048115,-500.0,0.00017231,2]
[346723735,1735245048126,-500.0,0.00017231,2]
[346723736,1735245048136,-500.0,0.00017231,2]
[346723737,1735245048147,-500.0,0.00017231,2]
[346723738,1735245048156,-500.0,0.00017231,2]
[346723739,1735245048165,-437.24,0.00017231,2]
[346723740,1735245048175,-500.0,0.00017231,2]
[346723741,1735245048184,-500.0,0.00017232,2]
[346723742,1735245048193,-500.0,0.00017232,2]
[346723743,1735245048202,-500.0,0.00017232,2]
[346723744,1735245048212,-500.0,0.00017232,2]
[346723745,1735245048222,-500.0,0.00017232,2]
[346723746,1735245048231,-452.36086737,0.00017232,2]
[346723747,1735245048241,-500.0,0.00017232,2]
[346723748,1735245048251,-353.36983598,0.00017232,2]
[346723749,1735245048260,-500.0,0.00017232,2]
[346723750,1735245048270,-500.0,0.00017232,2]
[346723751,1735245048279,-500.0,0.00017232,2]
[346723752,1735245048289,-500.0,0.00017232,2]
[346723753,1735245048298,-500.0,0.00017232,2]
[346723754,1735245048308,-500.0,0.00017232,2]
[346723755,1735245048317,-500.0,0.00017232,2]
[346723756,1735245048327,-500.0,0.00017232,2]
[346723757,1735245048336,-500.0,0.00017232,2]
[346723758,1735245048347,-500.0,0.00017232,2]
[346723759,1735245048357,-188.8464176,0.00017232,2]
[346723760,1735245048367,-297.25,0.00017232,2]
[346723761,1735245048376,-500.0,0.00017232,2]
[346723762,1735245048385,-585.24,0.00017232,2]
[346723763,1735245048394,-500.0,0.00017232,2]
[346723764,1735245048404,-500.0,0.00017232,2]
[346723765,1735245048413,-500.0,0.00017232,2]
[346723766,1735245048423,-500.0,0.00017232,2]
[346723767,1735245048432,-500.0,0.00017232,2]
[346723768,1735245048441,-500.0,0.00017232,2]
[346723769,1735245048451,-500.0,0.00017232,2]
[346723770,1735245048460,-500.0,0.00017232,2]
[346723771,1735245048470,-162.80182177,0.00017233,2]
[346723772,1735245048479,-1289.90244088,0.00017233,2]
[346723773,1735245048489,-388698.85757178,0.00017233,2]
[346723774,1735245048504,-6127.61207568,0.00017233,2]
[346723775,1735245048515,-8553.99557442,0.00017233,2]
[346723776,1735245048526,-17250.00000004,0.00017233,2]
[346723777,1735245150898,59999.0,0.00020527,30]
[346723778,1735245957133,-400.0,0.00013695,2]
[346723779,1735245957153,-400.0,0.00013833,2]
[346723780,1735245957173,-400.0,0.00013973,2]
[346723781,1735245957194,-87.59111559,0.0001637,2]
[346723782,1735246030189,-200.0,0.00016044,2]
[346723783,1735246030216,-122.66344053,0.00016206,2]
[346723785,1735246047101,-77.33655947,0.00016206,2]
[346723786,1735246047124,-510.32788441,0.0001637,2]
[346723787,1735246047146,-300.0,0.00016766,2]
[346723788,1735246047168,-300.0,0.00016766,2]
[346723789,1735246047189,-500.0,0.00016767,2]
[346723790,1735246047208,-500.0,0.00016767,2]
[346723791,1735246047230,-500.0,0.00016767,2]
[346723792,1735246047250,-286.91646307,0.00016767,2]
[346723793,1735246047272,-894.05,0.00016767,2]
[346723794,1735246047293,-500.0,0.00016767,2]
[346723795,1735246047314,-294.98716128,0.00016767,2]
[346723796,1735246048085,-205.01283872,0.00016767,2]
[346723797,1735246048107,-500.0,0.00016768,2]
[346723798,1735246048129,-469.35761671,0.00016768,2]
[346723806,1735246127984,-500.0,0.00016767,2]
[346723807,1735246128010,-337.87266977,0.00016767,2]
[346723808,1735246167097,-300.0,0.00016766,2]
[346723809,1735246167119,-19.50733023,0.00016767,2]
[346723810,1735246167139,-626.16,0.00016767,2]
[346723811,1735246167160,-572.98,0.00016767,2]
[346723812,1735246167182,-1029.66306772,0.00016767,2]
[346723816,1735246232757,-3262.47507338,0.00016767,2]
[346723817,1735246232769,-499.4845149,0.00016767,2]
[346723818,1735246232781,-478.25,0.00016767,2]
[346723962,1735246243588,-248.817344,0.00016767,2]
[346723963,1735246243597,-423.50668371,0.00016767,2]
[346723964,1735246243609,-1148.4465268,0.00016767,2]
[346724013,1735246246793,-887.40678949,0.00016767,2]
[346724014,1735246246803,-856.8,0.00016767,2]
[346724015,1735246246812,-500.0,0.00016767,2]
[346724016,1735246246821,-644.76,0.00016767,2]
[346724017,1735246246830,-500.0,0.00016767,2]
[346724018,1735246246839,-1018.44,0.00016767,2]
[346724019,1735246246848,-511.99,0.00016767,2]
[346724020,1735246246857,-30.64238329,0.00016768,2]
[346724021,1735246246867,-500.0,0.00016768,2]
[346724022,1735246246876,-500.0,0.00016768,2]
[346724023,1735246246885,-179.7,0.00016768,2]
[346724024,1735246246894,-568.24,0.00016768,2]
[346724025,1735246246903,-500.0,0.00016768,2]
[346724026,1735246246912,-500.0,0.00016768,2]
[346724027,1735246246921,-643.47,0.00016768,2]
[346724028,1735246246930,-560.25,0.00016768,2]
[346724029,1735246246939,-500.0,0.00016768,2]
[346724030,1735246246948,-947.89,0.00016768,2]
[346724031,1735246246958,-1353.71,0.00016768,2]
[346724032,1735246246967,-665.94,0.00016768,2]
[346724033,1735246246976,-500.0,0.00016768,2]
[346724034,1735246246985,-500.0,0.00016768,2]
[346724035,1735246246994,-645.83965025,0.00016768,2]
[346724036,1735246247003,-733.42,0.00016768,2]
[346724037,1735246247013,-666.34,0.00016768,2]
[346724039,1735246247022,-500.0,0.00016768,2]
[346724041,1735246247031,-216.12117698,0.00016768,2]
[346724042,1735246962398,2000.0,0.00020579,30]
[346724043,1735246962779,1999.9,0.00020579,30]
[346724044,1735247069756,500.0,0.00020579,120]
[346724045,1735247153129,-400.0,0.00013833,2]
[346724046,1735247153153,-400.0,0.00013973,2]
[346724047,1735247153175,-212.558789,0.00015767,2]
[346724048,1735247153197,-582.689,0.0001637,2]
[346724049,1735247153223,-300.0,0.00016444,2]
[346724050,1735247153245,-300.0,0.00016444,2]
[346724051,1735247153267,-5146.57267456,0.00016471,2]
[346724053,1735247231084,-2440.11000213,0.00016471,2]
[346724054,1735247239129,-1163.77432295,0.00016471,2]
[346724055,1735247241126,-472.83896445,0.00016471,2]
[346724056,1735247241148,-214.11054652,0.00016668,2]
[346724057,1735247241172,-300.0,0.00016761,2]
[346724058,1735247241194,-300.0,0.00016761,2]
[346724059,1735247241214,-500.0,0.00016762,2]
[346724060,1735247241236,-288.28243738,0.00016762,2]
[346724061,1735247241257,-500.0,0.00016762,2]
[346724062,1735247241277,-536.01110405,0.00016762,2]
[346724063,1735247241300,-124.59459291,0.00016762,2]
[346724064,1735247245100,-257.88087243,0.00016762,2]
[346724065,1735247361129,-223.92455066,0.00016662,2]
[346724066,1735247361156,-300.0,0.0001676,2]
[346724067,1735247361181,-300.0,0.0001676,2]
[346724068,1735247361210,-198.29024538,0.00016761,2]
[346724123,1735247431821,-171.2884372,0.00016666,2]
[346724125,1735247431831,-500.0,0.0001676,2]
[346724127,1735247431841,-232.51999446,0.00016761,2]
[346724129,1735247431850,-421.87656832,0.00016761,2]
[346724131,1735247431862,-380.7,0.00016761,2]
[346724134,1735247431879,-540.00600205,0.00016761,2]
[346724136,1735247431888,-1128.28657955,0.00016761,2]
[346724138,1735247431898,-427.69762682,0.00016761,2]
[346724240,1735247437702,-966.53558354,0.0001676,2]
[346724241,1735247437711,-187.34093236,0.0001676,2]
[346724242,1735247437722,-196.45772006,0.0001676,2]
[346724243,1735247437731,-966.53558354,0.0001676,2]
[346724244,1735247437741,-966.53558354,0.0001676,2]
[346724245,1735247437838,-500.0,0.0001676,2]
[346724246,1735247437849,-500.0,0.0001676,2]
[346724247,1735247437858,-966.53558354,0.0001676,2]
[346724248,1735247437868,-500.0,0.0001676,2]
[346724249,1735247437878,-966.53558354,0.0001676,2]
[346724250,1735247437887,-500.0,0.0001676,2]
[346724251,1735247437896,-966.53558354,0.0001676,2]
[346724252,1735247437907,-500.0,0.0001676,2]
[346724253,1735247437916,-966.53558354,0.0001676,2]
[346724254,1735247437926,-500.0,0.0001676,2]
[346724255,1735247437935,-966.53558354,0.0001676,2]
[346724256,1735247437945,-315.87133961,0.0001676,2]
[346724257,1735247437957,-184.12866039,0.0001676,2]
[346724258,1735247437967,-845.87133961,0.0001676,2]
[346724259,1735247437978,-120.66424393,0.0001676,2]
[346724260,1735247437988,-500.0,0.0001676,2]
[346724261,1735247437999,-966.53558354,0.0001676,2]
[346724262,1735247438009,-500.0,0.0001676,2]
[346724263,1735247438019,-966.53558354,0.0001676,2]
[346724264,1735247438031,-646.26458899,0.0001676,2]
[346724265,1735247438043,-320.27099455,0.0001676,2]
[346724266,1735247438053,-239.72900545,0.0001676,2]
[346724267,1735247438065,-260.27099455,0.0001676,2]
[346724268,1735247438074,-966.53558354,0.0001676,2]
[346724269,1735247438084,-500.0,0.0001676,2]
[346724270,1735247438094,-966.53558354,0.0001676,2]
[346724271,1735247438104,-500.0,0.0001676,2]
[346724272,1735247438113,-966.53558354,0.0001676,2]
[346724273,1735247438122,-500.0,0.0001676,2]
[346724274,1735247438132,-966.53558354,0.0001676,2]
[346724275,1735247438142,-966.53558354,0.0001676,2]
[346724276,1735247438152,-378.69365568,0.0001676,2]
[346724277,1735247438162,-966.53558354,0.0001676,2]
[346724278,1735247438172,-500.0,0.0001676,2]
[346724279,1735247438182,-966.53558354,0.0001676,2]
[346724280,1735247438192,-500.0,0.0001676,2]
[346724281,1735247438201,-966.53558354,0.0001676,2]
[346724282,1735247438212,-500.0,0.0001676,2]
[346724283,1735247438222,-966.53558354,0.0001676,2]
[346724284,1735247438231,-500.0,0.0001676,2]
[346724285,1735247438241,-966.53558354,0.0001676,2]
[346724286,1735247438251,-500.0,0.0001676,2]
[346724287,1735247438261,-966.53558354,0.0001676,2]
[346724288,1735247438272,-966.53558354,0.0001676,2]
[346724289,1735247438284,-500.0,0.0001676,2]
[346724290,1735247438295,-966.53558354,0.0001676,2]
[346724291,1735247438305,-966.53558354,0.0001676,2]
[346724292,1735247438315,-966.53558354,0.0001676,2]
[346724293,1735247438325,-500.0,0.0001676,2]
[346724294,1735247438334,-966.53558354,0.0001676,2]
[346724295,1735247438344,-500.0,0.0001676,2]
[346724296,1735247438354,-966.53558354,0.0001676,2]
[346724297,1735247438366,-966.53558354,0.0001676,2]
[346724298,1735247438376,-966.53558354,0.0001676,2]
[346724299,1735247438386,-966.53558354,0.0001676,2]
[346724300,1735247438396,-966.53558354,0.0001676,2]
[346724301,1735247438406,-966.53558354,0.0001676,2]
[346724302,1735247438416,-966.53558354,0.0001676,2]
[346724303,1735247438426,-966.53558354,0.0001676,2]
[346724304,1735247438437,-966.53558354,0.0001676,2]
[346724305,1735247438447,-966.53558354,0.0001676,2]
[346724306,1735247438457,-966.53558354,0.0001676,2]
[346724307,1735247438467,-966.53558354,0.0001676,2]
[346724308,1735247438477,-966.53558354,0.0001676,2]
[346724309,1735247438486,-966.53558354,0.0001676,2]
[346724310,1735247438496,-966.53558354,0.0001676,2]
[346724311,1735247438505,-966.53558354,0.0001676,2]
[346724312,1735247438516,-966.53558354,0.0001676,2]
[346724313,1735247438526,-966.53558354,0.0001676,2]
[346724314,1735247438539,-966.53558354,0.0001676,2]
[346724315,1735247438548,-966.53558354,0.0001676,2]
[346724316,1735247438558,-966.53558354,0.0001676,2]
[346724317,1735247438567,-966.53558354,0.0001676,2]
[346724318,1735247438576,-966.53558354,0.0001676,2]
[346724319,1735247438586,-966.53558354,0.0001676,2]
[346724320,1735247438595,-966.53558354,0.0001676,2]
[346724321,1735247438605,-966.53558354,0.0001676,2]
[346724322,1735247438614,-966.53558354,0.0001676,2]
[346724323,1735247438624,-966.53558354,0.0001676,2]
[346724324,1735247438635,-966.53558354,0.0001676,2]
[346724325,1735247438645,-966.53558354,0.0001676,2]
[346724326,1735247438655,-966.53558354,0.0001676,2]
[346724327,1735247438665,-500.0,0.00016762,2]
[346724328,1735247438675,-500.0,0.00016762,2]
[346724329,1735247438684,-1660.92,0.00016762,2]
[346724330,1735247438693,-500.0,0.00016762,2]
[346724331,1735247438703,-766.64,0.00016762,2]
[346724332,1735247438712,-551.79770617,0.00016763,2]
[346724333,1735247438721,-500.0,0.00016764,2]
[346724334,1735247438731,-500.0,0.00016764,2]
[346724335,1735247438740,-500.0,0.00016764,2]
[346724336,1735247438749,-8033.25,0.00016764,2]
[346724337,1735247438759,-500.0,0.00016764,2]
[346724338,1735247438769,-3734.06,0.00016764,2]
[346724339,1735247438778,-500.0,0.00016764,2]
[346724340,1735247438788,-500.0,0.00016764,2]
[346724341,1735247438797,-564.60976884,0.00016764,2]
[346724342,1735247438807,-500.0,0.00016764,2]
[346724343,1735247438817,-1629.21,0.00016764,2]
[346724344,1735247438826,-500.0,0.00016766,2]
[346724345,1735247438836,-500.0,0.00016766,2]
[346724346,1735247438845,-238.03530403,0.00016766,2]
[346724347,1735247438855,-500.0,0.00016766,2]
[346724348,1735247438864,-500.0,0.00016766,2]
[346724349,1735247438874,-500.0,0.00016766,2]
[346724350,1735247438884,-500.0,0.00016766,2]
[346724351,1735247438894,-500.0,0.00016766,2]
[346724352,1735247438904,-500.0,0.00016766,2]
[346724353,1735247438915,-183.29744434,0.00016766,2]
[346724354,1735247438925,-500.0,0.00016766,2]
[346724355,1735247438936,-500.0,0.00016766,2]
[346724356,1735247438946,-500.0,0.00016766,2]
[346724357,1735247438956,-500.0,0.00016766,2]
[346724358,1735247438966,-500.0,0.00016766,2]
[346724359,1735247438976,-371.33,0.00016766,2]
[346724360,1735247438986,-429.87495867,0.00016766,2]
[346724361,1735247438996,-500.0,0.00016766,2]
[346724362,1735247439006,-500.0,0.00016766,2]
[346724363,1735247439017,-500.0,0.00016766,2]
[346724364,1735247439027,-504.09440847,0.00016766,2]
[346724365,1735247439038,-500.0,0.00016766,2]
[346724366,1735247439048,-500.0,0.00016766,2]
[346724367,1735247439058,-500.0,0.00016766,2]
[346724368,1735247439068,-500.0,0.00016766,2]
[346724369,1735247439078,-500.0,0.00016766,2]
[346724370,1735247439088,-501.25237563,0.00016766,2]
[346724371,1735247439097,-500.0,0.00016766,2]
[346724372,1735247439107,-500.0,0.00016766,2]
[346724373,1735247439116,-500.0,0.00016766,2]
[346724374,1735247439126,-500.0,0.00016766,2]
[346724375,1735247439137,-500.0,0.00016766,2]
[346724376,1735247439147,-677.16,0.00016766,2]
[346724377,1735247439156,-413.97156798,0.00016766,2]
[346724378,1735247439166,-500.0,0.00016766,2]
[346724380,1735247439176,-239.94150064,0.00016766,2]
[346724381,1735247439186,-500.0,0.00016766,2]
[346724382,1735247439195,-500.0,0.00016766,2]
[346724383,1735247439204,-519.61,0.00016766,2]
[346724384,1735247439214,-500.0,0.00016766,2]
[346724385,1735247439223,-479.57711209,0.00016766,2]
[346724386,1735247439233,-342.26586419,0.00016766,2]
[346724387,1735247439243,-500.0,0.00016766,2]
[346724388,1735247439252,-500.0,0.00016766,2]
[346724389,1735247439262,-500.0,0.00016766,2]
[346724390,1735247439275,-500.0,0.00016766,2]
[346724391,1735247439286,-500.0,0.00016766,2]
[346724392,1735247439296,-500.0,0.00016766,2]
[346724393,1735247439306,-500.0,0.00016766,2]
[346724394,1735247439388,-500.0,0.00016766,2]
[346724395,1735247439399,-500.0,0.00016766,2]
[346724397,1735247439409,-500.0,0.00016766,2]
[346724399,1735247439419,-914.4,0.00016766,2]
[346724400,1735247439429,-500.0,0.00016766,2]
[346724401,1735247439439,-500.0,0.00016766,2]
[346724402,1735247439449,-500.0,0.00016766,2]
[346724403,1735247439459,-200.0,0.00016766,2]
[346724404,1735247439469,-168.0,0.00016766,2]
[346724405,1735247439478,-500.0,0.00016766,2]
[346724406,1735247439488,-506.03316028,0.00016766,2]
[346724407,1735247439497,-500.0,0.00016766,2]
[346724408,1735247439507,-500.0,0.00016766,2]
[346724409,1735247439518,-500.0,0.00016766,2]
[346724411,1735247439527,-500.0,0.00016766,2]
[346724412,1735247439540,-500.0,0.00016766,2]
[346724414,1735247439549,-615.09054119,0.00016766,2]
[346724416,1735247439559,-500.0,0.00016766,2]
[346724417,1735247439569,-500.0,0.00016766,2]
[346724418,1735247439578,-500.0,0.00016766,2]
[346724419,1735247439588,-500.0,0.00016766,2]
[346724421,1735247439599,-500.0,0.00016766,2]
[346724422,1735247439608,-268.69080599,0.00016766,2]
[346724423,1735247439618,-500.0,0.00016766,2]
[346724424,1735247439628,-500.0,0.00016766,2]
[346724425,1735247439638,-500.0,0.00016766,2]
[346724426,1735247439648,-500.0,0.00016766,2]
[346724427,1735247439658,-584.88018895,0.00016766,2]
[346724428,1735247439667,-500.0,0.00016766,2]
[346724429,1735247439676,-864.44,0.00016766,2]
[346724430,1735247439685,-500.0,0.00016766,2]
[346724431,1735247439694,-1044.13,0.00016766,2]
[346724432,1735247439703,-366.87345666,0.00016766,2]
[346724433,1735247439712,-500.0,0.00016766,2]
[346724434,1735247439721,-500.0,0.00016766,2]
[346724435,1735247439730,-500.0,0.00016766,2]
[346724436,1735247439740,-500.0,0.00016766,2]
[346724437,1735247439749,-500.0,0.00016766,2]
[346724438,1735247439758,-1072.97,0.00016766,2]
[346724439,1735247439767,-500.0,0.00016766,2]
[346724440,1735247439776,-500.0,0.00016766,2]
[346724441,1735247439789,-500.0,0.00016766,2]
[346724442,1735247439798,-500.0,0.00016766,2]
[346724443,1735247439808,-939.32,0.00016766,2]
[346724444,1735247439816,-500.0,0.00016766,2]
[346724445,1735247439826,-500.0,0.00016766,2]
[346724446,1735247439836,-500.0,0.00016766,2]
[346724448,1735247439845,-500.0,0.00016766,2]
[346724449,1735247439855,-500.0,0.00016766,2]
[346724450,1735247439864,-500.0,0.00016766,2]
[346724451,1735247439874,-500.0,0.00016766,2]
[346724452,1735247439883,-500.0,0.00016766,2]
[346724453,1735247439893,-623.13,0.00016766,2]
[346724454,1735247439901,-500.0,0.00016766,2]
[346724455,1735247439911,-1287.49,0.00016766,2]
[346724457,1735247439920,-500.0,0.00016766,2]
[346724459,1735247439929,-500.0,0.00016766,2]
[346724461,1735247439939,-854.56,0.00016766,2]
[346724462,1735247439948,-2005.01,0.00016766,2]
[346724464,1735247439958,-643.12,0.00016766,2]
[346724466,1735247439967,-500.0,0.00016766,2]
[346724468,1735247439976,-500.0,0.00016766,2]
[346724469,1735247439985,-500.0,0.00016766,2]
[346724470,1735247439995,-500.0,0.00016766,2]
[346724472,1735247440005,-500.0,0.00016766,2]
[346724474,1735247440014,-500.0,0.00016766,2]
[346724475,1735247440024,-500.0,0.00016766,2]
[346724476,1735247440035,-500.0,0.00016766,2]
[346724477,1735247440045,-24290.62,0.00016766,2]
[346724478,1735247440055,-500.0,0.00016766,2]
[346724479,1735247440064,-500.0,0.00016766,2]
[346724480,1735247440074,-500.0,0.00016766,2]
[346724481,1735247440083,-500.0,0.00016766,2]
[346724482,1735247440093,-500.0,0.00016766,2]
[346724483,1735247440102,-1036.26,0.00016766,2]
[346724484,1735247440113,-500.0,0.00016766,2]
[346724485,1735247440122,-500.0,0.00016766,2]
[346724486,1735247440132,-1030.32,0.00016766,2]
[346724487,1735247440141,-500.0,0.00016766,2]
[346724488,1735247440151,-500.0,0.00016766,2]
[346724489,1735247440160,-500.0,0.00016766,2]
[346724491,1735247440169,-500.0,0.00016766,2]
[346724492,1735247440179,-855.87,0.00016766,2]
[346724493,1735247440188,-500.0,0.00016766,2]
[346724494,1735247440198,-500.0,0.00016766,2]
[346724495,1735247440208,-500.0,0.00016766,2]
[346724496,1735247440219,-500.0,0.00016766,2]
[346724497,1735247440228,-500.0,0.00016766,2]
[346724498,1735247440237,-500.0,0.00016766,2]
[346724499,1735247440247,-500.0,0.00016766,2]
[346724501,1735247440257,-500.0,0.00016766,2]
[346724503,1735247440267,-500.0,0.00016766,2]
[346724505,1735247440276,-500.0,0.00016766,2]
[346724506,1735247440291,-566.65,0.00016766,2]
[346724507,1735247440303,-500.0,0.00016766,2]
[346724508,1735247440313,-500.0,0.00016766,2]
[346724509,1735247440322,-500.0,0.00016766,2]
[346724510,1735247440333,-500.0,0.00016766,2]
[346724511,1735247440343,-1027.46,0.00016766,2]
[346724512,1735247440352,-1027.46,0.00016766,2]
[346724513,1735247440362,-500.0,0.00016766,2]
[346724514,1735247440372,-500.0,0.00016766,2]
[346724515,1735247440382,-508.43841695,0.00016767,2]
[346724516,1735247440391,-500.0,0.00016767,2]
[346724517,1735247440401,-500.0,0.00016767,2]
[346724518,1735247440410,-215.11515765,0.00016767,2]
[346724519,1735247440420,-500.0,0.00016767,2]
[346724520,1735247440430,-500.0,0.00016767,2]
[346724521,1735247440440,-500.0,0.00016767,2]
[346724522,1735247440449,-500.0,0.00016767,2]
[346724523,1735247440458,-500.0,0.00016767,2]
[346724524,1735247440467,-502.18577613,0.00016767,2]
[346724525,1735247440477,-629.3871575,0.00016767,2]
[346724526,1735247440486,-500.0,0.00016767,2]
[346724527,1735247440495,-500.0,0.00016767,2]
[346724528,1735247440505,-500.0,0.00016767,2]
[346724529,1735247440514,-500.0,0.00016767,2]
[346724530,1735247440523,-500.0,0.00016767,2]
[346724531,1735247440533,-500.0,0.00016767,2]
[346724532,1735247440543,-500.0,0.00016767,2]
[346724533,1735247440552,-500.0,0.00016767,2]
[346724534,1735247440562,-500.0,0.00016767,2]
[346724535,1735247440571,-500.0,0.00016767,2]
[346724536,1735247440580,-500.0,0.00016767,2]
[346724537,1735247440589,-500.0,0.00016767,2]
[346724538,1735247440599,-500.0,0.00016767,2]